bitfinex/quotes_SOLUSD_20240906
["timestamp","ask_amount","ask_price","bid_price","bid_amount"]
[1725632032668,0.9705068,129.42,129.32,1.54591126]
[1725632032903,1.60897619,129.42,129.29,19.3351]
[1725632033065,0.9705068,129.42,129.32,19.3309]
[1725632033274,0.9705068,129.42,129.34,50.0]
[1725632033478,0.9705068,129.42,129.39,7.7284]
[1725632033706,0.9705068,129.42,129.4,9.27266623]
[1725632033897,0.9705068,129.42,129.39,28.59332303]
[1725632034101,0.9705068,129.42,129.39,27.0486]
[1725632034402,0.9705068,129.42,129.39,19.3203]
[1725632034707,0.9705068,129.42,129.4,9.2727931]
[1725632034880,0.9705068,129.42,129.4,59.27237536]
[1725632035075,20.90387619,129.57,129.44,7.725]
[1725632035298,19.3006,129.53,129.4,1.54457536]
[1725632035679,7.725,129.45,129.39,27.0494]
[1725632035879,0.63846939,129.52,129.39,27.0494]
[1725632035880,7.7242,129.47,129.4,7.7278]
[1725632036076,7.7256,129.44,129.39,19.321]
[1725632036304,7.7249,129.46,129.39,27.0495]
[1725632036511,19.3057,129.5,129.39,19.321]
[1725632036512,19.94416939,129.5,129.39,19.321]
[1725632036805,7.04956939,129.58,129.42,69.316]
[1725632037110,25.7044,129.58,129.44,7.7254]
[1725632037297,0.63846939,129.57,129.45,45.0]
[1725632037498,64.93186939,129.58,129.42,70.86015952]
[1725632037707,64.93186939,129.58,129.43,46.54404376]
[1725632037708,25.7044,129.58,129.43,46.54404376]
[1725632037886,7.7225,129.5,129.44,7.7255]
[1725632038084,7.7225,129.5,129.43,45.0]
[1725632038292,6.4111,129.58,129.44,51.54441577]
[1725632038507,6.4111,129.58,129.44,19.3131]
[1725632038508,0.63846939,129.57,129.44,19.3131]
[1725632038807,7.724,129.47,129.4,27.0475]
[1725632038986,7.724,129.47,129.41,7.7272]
[1725632039309,7.7252,129.45,129.4,19.3197]
[1725632039488,0.63846939,129.52,129.33,50.0]
[1725632039682,19.3102,129.47,129.32,19.331]
[1725632039883,0.63846939,129.46,129.32,19.331]
[1725632040107,7.726,129.44,129.35,19.3264]
[1725632040319,57.9117,129.51,129.38,19.3221]
[1725632040486,20.0,129.5,129.39,1.54467851]
[1725632040690,20.0,129.5,129.3,10.0]
[1725632040691,7.7273,129.42,129.34,27.0597]
[1725632041003,20.0,129.5,129.37,69.3239]
[1725632041004,39.3056,129.5,129.37,69.3239]
[1725632041250,7.7218,129.51,129.43,19.3147]
[1725632041379,6.4111,129.58,129.4,50.0]
[1725632041380,0.63846939,129.55,129.4,50.0]
[1725632041587,7.7242,129.47,129.4,7.7279]
[1725632041884,7.7242,129.47,129.38,69.3223]
[1725632041885,7.7238,129.47,129.38,69.3223]
[1725632042084,0.63846939,129.51,129.38,19.3223]
[1725632042309,7.7237,129.48,129.42,7.7266]
[1725632042609,19.3032,129.52,129.43,1.5445819]
[1725632042908,0.63846939,129.56,129.36,27.0549]
[1725632042909,7.7268,129.42,129.36,27.0549]
[1725632043123,7.7261,129.44,129.36,19.3248]
[1725632043407,0.63846939,129.48,129.36,19.3248]
[1725632043590,7.7223,129.5,129.4,50.0]
[1725632043794,7.722,129.51,129.45,7.7247]
[1725632044010,38.592,129.57,129.37,59.58068023]
[1725632044011,38.592,129.57,129.44,50.0]
[1725632044209,25.7055,129.58,129.5,7.722]
[1725632044210,7.7189,129.56,129.5,7.722]
[1725632044407,35.9429,129.62,129.51,1.54371838]
[1725632044615,7.719,129.55,129.5,7.7219]
[1725632044783,7.7197,129.54,129.48,7.7226]
[1725632045090,7.7197,129.54,129.47,19.3081]
[1725632045091,19.2927,129.59,129.47,19.3081]
[1725632045291,19.2927,129.59,129.49,7.7225]
[1725632045515,19.2869,129.63,129.53,7.7201]
[1725632045716,7.7178,129.57,129.51,9.26447462]
[1725632046010,7.7183,129.57,129.51,1.54357853]
[1725632046211,7.7183,129.57,129.48,45.0]
[1725632046212,19.2856,129.64,129.53,7.7202]
[1725632046411,6.2486,129.65,129.55,19.2964]
[1725632046600,6.2486,129.65,129.55,20.83959406]
[1725632046924,19.2786,129.68,129.55,27.0149]
[1725632047090,7.7158,129.61,129.56,9.26137369]
[1725632047413,19.2828,129.65,129.53,7.7202]
[1725632047621,19.2828,129.65,129.51,19.3022]
[1725632047622,7.7202,129.53,129.47,7.7237]
[1725632047788,0.63846939,129.64,129.46,50.0]
[1725632047789,19.2915,129.6,129.46,50.0]
[1725632048104,0.63846939,129.59,129.47,19.3093]
[1725632048299,38.5666,129.65,129.5,19.3039]
[1725632048300,19.2853,129.64,129.5,19.3039]
[1725632048497,19.92376939,129.64,129.5,19.3039]
[1725632048697,38.5803,129.6,129.47,7.7236]
[1725632048905,7.7201,129.54,129.48,7.7231]
[1725632049106,19.2936,129.58,129.49,7.7225]
[1725632049107,7.7195,129.55,129.49,7.7225]
[1725632049288,19.2887,129.61,129.52,7.7208]
[1725632049509,19.2887,129.61,129.53,9.26370552]
[1725632049715,7.7161,129.6,129.55,7.7189]
[1725632049913,7.7153,129.62,129.57,7.7177]
[1725632050099,7.7142,129.64,129.58,9.26003863]
[1725632050486,19.2825,129.66,129.53,19.2993]
[1725632050791,7.7184,129.57,129.5,19.3049]
[1725632051003,7.7172,129.58,129.53,7.7201]
[1725632051195,0.63846939,129.62,129.53,19.3001]
[1725632051391,7.7166,129.59,129.54,7.7192]
[1725632051610,7.7143,129.63,129.56,19.2958]
[1725632051808,1.84287379,129.7,129.55,1.54316449]
[1725632051809,1.84287379,129.7,129.57,46.54277212]
[1725632052054,1.84287379,129.7,129.59,19.2912]
[1725632052055,1.2044044,129.7,129.59,19.2912]
[1725632052190,7.7113,129.68,129.61,19.2873]
[1725632052514,1.84287379,129.7,129.58,19.2928]
[1725632052732,19.91636939,129.69,129.58,19.2928]
[1725632053217,19.91636939,129.69,129.54,51.54261856]
[1725632053218,7.7155,129.61,129.55,7.7185]
[1725632053515,38.558,129.68,129.54,27.0168]
[1725632053725,19.2841,129.65,129.54,27.0168]
[1725632053896,7.7141,129.64,129.58,7.717]
[1725632054099,7.7143,129.63,129.58,1.54270954]
[1725632054292,7.7151,129.62,129.57,27.0115]
[1725632054499,19.2785,129.68,129.58,1.54286207]
[1725632054696,1.2044044,129.7,129.58,51.54286207]
[1725632055009,1.2044044,129.7,129.6,19.2899]
[1725632055212,1.2044044,129.7,129.62,19.2859]
[1725632055400,1.2044044,129.7,129.63,1.54232463]
[1725632055603,1.2044044,129.7,129.69,7.7106]
[1725632055809,1.2044044,129.7,129.69,1.54133477]
[1725632056022,1.2044044,129.7,129.62,109.58068023]
[1725632056219,7.7126,129.66,129.6,50.0]
[1725632056420,7.715,129.62,129.57,7.7177]
[1725632056621,1.84287379,129.7,129.54,7.7195]
[1725632056622,7.7161,129.6,129.54,7.7195]
[1725632056822,7.7161,129.6,129.53,19.3004]
[1725632056823,19.2838,129.65,129.53,69.3004]
[1725632057134,7.7153,129.62,129.56,7.7184]
[1725632057304,7.7153,129.62,129.57,9.26064831]
[1725632057502,38.5606,129.67,129.57,7.7177]
[1725632057712,7.7141,129.64,129.58,1.54293572]
[1725632057935,19.2781,129.69,129.58,19.293]
[1725632058229,7.7137,129.64,129.59,7.7164]
[1725632058416,7.7131,129.65,129.59,7.7164]
[1725632058612,1.2044044,129.7,129.6,20.83152515]
[1725632058818,1.2044044,129.7,129.53,38.5987]
[1725632058819,8.9145044,129.7,129.61,51.54217176]
[1725632059022,1.2044044,129.7,129.62,19.2858]
[1725632059207,1.2044044,129.7,129.63,1.54243288]
[1725632059408,1.2044044,129.7,129.57,38.5878]
[1725632059409,1.2044044,129.7,129.61,19.2872]
[1725632059741,19.2815,129.66,129.5,50.0]
[1725632060044,19.2858,129.63,129.51,19.3023]
[1725632060212,7.7185,129.56,129.51,19.3023]
[1725632060407,19.2858,129.63,129.54,7.7195]
[1725632060608,26.9262044,129.7,129.55,1.54324833]
[1725632060609,16.9262044,129.7,129.55,1.54324833]
[1725632060809,7.7154,129.62,129.53,19.2996]
[1725632061027,7.713,129.66,129.56,1.54288162]
[1725632061233,7.7149,129.62,129.56,19.2949]
[1725632061416,7.7167,129.59,129.53,7.7198]
[1725632061627,7.7165,129.6,129.54,7.7193]
[1725632061822,19.91566939,129.69,129.55,20.84017752]
[1725632062006,7.7137,129.64,129.57,7.7176]
[1725632062208,7.7137,129.64,129.58,9.25986547]
[1725632062434,19.2772,129.69,129.6,7.7159]
[1725632062638,1.2044044,129.7,129.6,1.54257518]
[1725632062818,1.2044044,129.7,129.62,7.7144]
[1725632063135,1.2044044,129.7,129.63,1.54229081]
[1725632063347,1.2044044,129.7,129.67,7.7117]
[1725632063647,1.2044044,129.7,129.68,1.5418353]
[1725632064139,1.2044044,129.7,129.69,7.7106]
[1725632064453,1.2044044,129.7,129.69,52.7106]
[1725632064625,1.2044044,129.7,129.69,7.7106]
[1725632064835,3.996,129.8,129.77,7.7058]
[1725632065146,3.996,129.8,129.78,1.54081044]
[1725632065326,3.996,129.8,129.73,1.54059511]
[1725632065647,3.996,129.8,129.71,19.2733]
[1725632065648,3.996,129.8,129.72,7.7087]
[1725632066141,3.996,129.8,129.71,19.2733]
[1725632066443,3.996,129.8,129.69,45.0]
[1725632066444,0.63846939,129.79,129.69,7.7101]
[1725632066634,7.7096,129.71,129.63,36.09062768]
[1725632066841,19.90456939,129.77,129.61,50.0]
[1725632067140,19.90456939,129.77,129.57,98.16838023]
[1725632067141,13.53936003,129.7,129.59,51.54200137]
[1725632067346,13.53936003,129.7,129.59,51.542213]
[1725632067347,26.8859481,129.69,129.59,51.542213]
[1725632067528,26.8859481,129.68,129.59,50.0]
[1725632067732,8.98410423,129.67,129.59,27.0074]
[1725632067940,8.98150746,129.66,129.59,19.2913]
[1725632068117,8.98150746,129.65,129.59,19.2913]
[1725632068323,8.98165327,129.64,129.59,19.2913]
[1725632068526,8.98165327,129.64,129.55,19.2971]
[1725632068527,21.91619776,129.63,129.55,19.2971]
[1725632068740,21.91619776,129.63,129.62,9.66729944]
[1725632068741,7.7142,129.63,129.62,9.66729944]
[1725632068921,0.67419801,129.64,129.56,4.6636748]
[1725632069130,7.717,129.59,129.57,4.66449514]
[1725632069315,7.717,129.59,129.58,31.73293358]
[1725632069652,6.545,129.63,129.51,19.3027]
[1725632069653,19.288,129.62,129.51,19.3027]
[1725632069839,7.16079801,129.67,129.52,9.2638753]
[1725632070015,7.16079801,129.67,129.54,7.7192]
[1725632070016,19.2848,129.64,129.54,7.7192]
[1725632070338,7.7154,129.61,129.55,1.5428593]
[1725632070520,7.16079801,129.67,129.54,19.2983]
[1725632070842,19.2836,129.65,129.54,19.2983]
[1725632071045,19.2836,129.65,129.55,1.54313165]
[1725632071223,19.2875,129.62,129.49,57.722]
[1725632071547,7.7209,129.52,129.46,7.7242]
[1725632071726,44.55004161,129.51,129.43,19.3144]
[1725632072043,19.2967,129.56,129.43,19.3144]
[1725632072044,54.08077139,129.5,129.46,7.7243]
[1725632072253,26.99515114,129.49,129.46,20.85441574]
[1725632072415,17.46310076,129.48,129.46,19.3101]
[1725632072766,7.7238,129.47,129.42,19.3157]
[1725632073131,19.2995,129.54,129.43,1.54471419]
[1725632073331,6.5433,129.55,129.43,1.54471419]
[1725632073332,7.7212,129.52,129.43,1.54471419]
[1725632073659,35.451,129.58,129.45,19.3121]
[1725632073830,35.451,129.58,129.46,1.54385298]
[1725632074350,13.2899097,129.57,129.46,50.0]
[1725632074652,16.70723545,129.63,129.57,27.0117]
[1725632074838,6.1165,129.68,129.57,27.0117]
[1725632075029,7.7142,129.63,129.57,19.2943]
[1725632075226,7.7134,129.65,129.59,7.7164]
[1725632075425,7.7126,129.66,129.6,19.2899]
[1725632075633,16.5199,129.7,129.61,7.7154]
[1725632075822,16.5199,129.7,129.6,19.2899]
[1725632075823,13.03677533,129.73,129.63,19.2854]
[1725632076133,23.0547,129.74,129.63,19.2854]
[1725632076134,6.5348,129.74,129.63,19.2854]
[1725632076339,7.7088,129.73,129.67,26.9902]
[1725632076554,7.7088,129.73,129.64,46.54185374]
[1725632076555,6.5348,129.74,129.64,45.0]
[1725632076853,15.0585,129.77,129.66,19.2809]
[1725632077030,1.92718888,129.76,129.66,19.2809]
[1725632077229,1.92718888,129.76,129.66,26.993]
[1725632077426,7.7102,129.7,129.64,7.7134]
[1725632077622,7.7102,129.7,129.65,7.7129]
[1725632077832,7.7102,129.7,129.64,19.2827]
[1725632078029,1.92718888,129.76,129.61,1.54210814]
[1725632078230,19.2751,129.71,129.56,1.93252552]
[1725632078430,53.5897,129.77,129.57,3.47532773]
[1725632078431,7.7142,129.63,129.57,3.47532773]
[1725632078732,7.7142,129.63,129.56,19.2948]
[1725632078733,19.2795,129.68,129.58,3.47530967]
[1725632078930,19.2734,129.72,129.59,29.35546984]
[1725632079241,19.2734,129.72,129.61,28.95435512]
[1725632079432,7.7112,129.69,129.63,7.7141]
[1725632079640,19.2734,129.72,129.64,6.5887244]
[1725632079853,19.2734,129.72,129.64,1.54229671]
[1725632080021,19.2734,129.72,129.62,1.54209464]
[1725632080226,7.7124,129.67,129.62,9.25669464]
[1725632080454,19.2765,129.7,129.59,7.7161]
[1725632080759,7.7135,129.65,129.6,1.54242054]
[1725632081045,19.2765,129.7,129.61,1.54254826]
[1725632081255,7.7106,129.7,129.64,7.7136]
[1725632081427,19.271,129.73,129.62,1.54200999]
[1725632081630,19.271,129.73,129.62,43.88932345]
[1725632081837,7.7107,129.69,129.62,43.88932345]
[1725632082153,7.7094,129.72,129.67,7.7116]
[1725632082350,15.0585,129.77,129.68,20.14260529]
[1725632082656,12.23982982,129.8,129.68,20.14260529]
[1725632082657,3.996,129.8,129.74,19.2683]
[1725632082858,3.996,129.8,129.76,7.7065]
[1725632083150,19.263,129.79,129.69,0.86231806]
[1725632083353,7.7064,129.77,129.71,7.7091]
[1725632083562,21.18946239,129.79,129.69,19.2754]
[1725632083855,9.00639893,129.7,129.66,20.14523855]
[1725632084028,9.00639893,129.7,129.66,26.993]
[1725632084233,9.00639893,129.69,129.66,19.2807]
[1725632084647,9.00639893,129.68,129.66,26.993]
[1725632084857,16.71589893,129.71,129.66,26.993]
[1725632085025,9.00639893,129.71,129.66,19.2807]
[1725632085228,1.92744901,129.79,129.63,20.15044687]
[1725632085229,19.272,129.73,129.63,20.15044687]
[1725632085459,7.7117,129.68,129.63,19.2852]
[1725632085625,9.00336476,129.7,129.63,19.2852]
[1725632085832,7.7118,129.68,129.63,26.9992]
[1725632086032,7.711,129.69,129.64,8.57992419]
[1725632086443,9.00336476,129.7,129.63,27.86529916]
[1725632086648,9.00336476,129.67,129.56,50.0]
[1725632086854,38.5451,129.72,129.57,19.2939]
[1725632086855,19.278,129.69,129.57,19.2939]
[1725632087363,9.00336476,129.71,129.59,19.2903]
[1725632087653,57.8179,129.72,129.59,19.2903]
[1725632087654,28.27936476,129.7,129.61,19.2877]
[1725632087866,7.7117,129.68,129.63,7.7142]
[1725632088033,6.1291,129.74,129.65,7.713]
[1725632088034,19.2711,129.73,129.65,7.713]
[1725632088365,19.2711,129.73,129.66,0.86551196]
[1725632088660,7.7107,129.69,129.64,8.57934659]
[1725632088955,19.2751,129.71,129.61,7.7153]
[1725632089130,19.2751,129.71,129.63,7.7141]
[1725632089328,7.7118,129.68,129.63,20.15159243]
[1725632089643,7.7124,129.67,129.64,0.86631502]
[1725632089839,7.7124,129.67,129.62,7.7142]
[1725632090156,25.3991,129.74,129.66,7.7124]
[1725632090358,25.3991,129.74,129.64,19.2833]
[1725632090540,7.7119,129.67,129.62,7.7143]
[1725632090948,19.2732,129.72,129.63,20.15083951]
[1725632091255,7.7113,129.68,129.63,19.2845]
[1725632091451,19.2759,129.7,129.61,7.7154]
[1725632091755,19.2759,129.7,129.62,0.86676197]
[1725632092067,7.7129,129.66,129.62,7.7148]
[1725632092351,7.7129,129.66,129.61,8.58220698]
[1725632092858,7.7132,129.65,129.6,27.0053]
[1725632093042,7.7125,129.66,129.6,19.2895]
[1725632093238,57.8155,129.73,129.62,19.2865]
[1725632093558,57.8155,129.73,129.6,0.86610944]
[1725632093559,20.0,129.72,129.6,0.86610944]
[1725632093771,7.7135,129.65,129.6,8.58170944]
[1725632094056,9.00335518,129.61,129.55,19.2966]
[1725632094240,9.00335518,129.59,129.55,19.2966]
[1725632094441,19.2833,129.65,129.55,19.2966]
[1725632094442,9.00335518,129.58,129.55,19.2966]
[1725632094750,9.00335518,129.59,129.56,0.8689429]
[1725632094931,9.00335518,129.59,129.53,38.6004]
[1725632094932,9.00335518,129.6,129.52,19.3012]
[1725632095138,9.00335518,129.6,129.55,7.7188]
[1725632095139,9.00335518,129.57,129.55,7.7188]
[1725632095331,9.00335518,129.57,129.53,50.86922064]
[1725632095556,57.847,129.66,129.56,19.2954]
[1725632095557,9.00335518,129.59,129.56,19.2954]
[1725632095763,9.00335518,129.59,129.58,7.7172]
[1725632096062,7.7144,129.63,129.58,27.0095]
[1725632096063,9.00335518,129.61,129.58,27.0095]
[1725632096354,9.00335518,129.62,129.59,7.7161]
[1725632096552,13.53137348,129.67,129.6,7.7159]
[1725632096553,9.00335518,129.63,129.6,7.7159]
[1725632096758,9.00335518,129.62,129.61,8.58295381]
[1725632096955,7.7146,129.63,129.57,19.294]
[1725632097263,7.7126,129.66,129.61,7.715]
[1725632097435,7.712,129.67,129.62,0.86704493]
[1725632097639,7.7121,129.67,129.62,7.7144]
[1725632097946,7.7114,129.68,129.63,7.7141]
[1725632098250,35.9181,129.72,129.62,8.58117841]
[1725632098251,7.7119,129.67,129.62,8.58117841]
[1725632098563,7.7124,129.66,129.62,7.7147]
[1725632098736,7.7139,129.64,129.59,7.716]
[1725632098938,19.2786,129.68,129.58,102.8757]
[1725632098939,7.7134,129.65,129.6,27.87205973]
[1725632099136,7.7134,129.65,129.58,83.5837]
[1725632099137,7.7152,129.62,129.58,7.7171]
[1725632099443,7.7144,129.63,129.59,7.7162]
[1725632099957,19.2818,129.66,129.57,27.0109]
[1725632100137,7.7149,129.62,129.57,27.0112]
[1725632100455,2.54469196,129.69,129.56,7.7182]
[1725632100769,7.7184,129.57,129.53,7.72]
[1725632100940,7.7197,129.54,129.46,38.6219]
[1725632101129,7.7191,129.55,129.51,7.721]
[1725632101332,19.2925,129.59,129.51,7.721]
[1725632101333,7.719,129.56,129.51,7.721]
[1725632101550,6.4247,129.62,129.43,50.0]
[1725632101551,1.92951755,129.58,129.43,50.0]
[1725632101752,19.3014,129.53,129.44,19.3132]
[1725632102039,19.2964,129.56,129.45,0.87285362]
[1725632102237,54.9716,129.6,129.52,7.7207]
[1725632102238,7.7179,129.57,129.52,7.7207]
[1725632102541,35.6825,129.6,129.53,0.87077536]
[1725632102741,16.3913,129.6,129.49,19.306]
[1725632102955,7.7205,129.53,129.48,7.7226]
[1725632103151,18.32113604,129.6,129.5,0.87131104]
[1725632103152,16.3913,129.6,129.5,0.87131104]
[1725632103350,16.3913,129.6,129.51,19.3025]
[1725632103631,1.92971169,129.67,129.5,0.87131104]
[1725632103632,7.7142,129.63,129.58,7.7171]
[1725632103839,22.2051,129.67,129.59,0.86849725]
[1725632103840,19.2826,129.66,129.59,0.86849725]
[1725632104057,7.713,129.66,129.6,7.7155]
[1725632104370,0.616269,129.69,129.61,0.8675363]
[1725632104540,0.616269,129.69,129.59,7.7165]
[1725632104541,7.7136,129.64,129.59,7.7165]
[1725632104734,7.7136,129.64,129.57,0.86723168]
[1725632104735,7.7124,129.67,129.6,0.86799728]
[1725632104962,0.616269,129.69,129.6,19.289]
[1725632105168,1.92841288,129.68,129.53,38.6001]
[1725632105454,0.616269,129.69,129.54,19.2984]
[1725632105455,15.91884861,129.67,129.54,19.2984]
[1725632105757,15.91884861,129.67,129.49,6.5797]
[1725632105758,23.99504669,129.66,129.51,19.3031]
[1725632105962,16.05893119,129.65,129.51,19.3031]
[1725632106155,38.56,129.67,129.43,66.05988023]
[1725632106156,7.722,129.5,129.43,66.05988023]
[1725632106459,7.7196,129.54,129.44,50.87275103]
[1725632106666,33.93685482,129.59,129.5,19.3036]
[1725632106868,13.93685482,129.59,129.51,0.8709717]
[1725632107157,53.8106,129.63,129.52,0.87001132]
[1725632107158,15.2388,129.63,129.52,0.87001132]
[1725632107364,15.2388,129.63,129.54,19.2976]
[1725632107569,34.5245,129.63,129.54,19.2976]
[1725632107738,7.7185,129.56,129.5,8.59095372]
[1725632108057,15.2388,129.63,129.52,19.301]
[1725632108266,13.6376154,129.65,129.53,45.86868549]
[1725632108267,7.7153,129.62,129.53,45.86868549]
[1725632108565,13.6376154,129.65,129.53,45.86868549]
[1725632108566,7.7143,129.63,129.55,19.2973]
[1725632108736,7.7143,129.63,129.56,45.86832192]
[1725632108937,13.6376154,129.65,129.57,50.0]
[1725632109141,7.7126,129.66,129.61,19.2872]
[1725632109339,0.616269,129.69,129.62,0.8670688]
[1725632109564,0.616269,129.69,129.62,0.86620221]
[1725632109855,0.616269,129.69,129.61,19.2872]
[1725632110058,19.893969,129.69,129.6,0.86702501]
[1725632110359,19.2867,129.63,129.52,19.3019]
[1725632110548,19.2867,129.63,129.54,19.2983]
[1725632110757,1.92909147,129.67,129.54,19.2983]
[1725632110938,15.9128,129.64,129.51,19.3035]
[1725632111144,21.9292183,129.63,129.52,7.7206]
[1725632111462,21.9292183,129.63,129.52,7.7207]
[1725632111644,19.288,129.62,129.5,19.3045]
[1725632111850,20.0,129.61,129.52,7.7207]
[1725632112052,20.0,129.61,129.53,7.7198]
[1725632112245,20.0,129.61,129.52,19.301]
[1725632112443,7.716,129.61,129.56,7.7182]
[1725632112765,7.7191,129.55,129.5,7.7215]
[1725632113061,7.7185,129.56,129.51,7.7214]
[1725632113259,13.76295993,129.58,129.5,19.3043]
[1725632113560,13.76295993,129.58,129.46,7.7238]
[1725632113561,7.7214,129.51,129.46,7.7238]
[1725632113750,19.2984,129.55,129.46,19.3099]
[1725632113957,7.7221,129.5,129.44,7.7254]
[1725632114139,7.7243,129.47,129.41,7.7268]
[1725632114337,1.93114918,129.49,129.37,0.87446258]
[1725632114554,1.93114918,129.49,129.33,50.3245315]
[1725632114555,7.7256,129.44,129.38,7.729]
[1725632114768,7.7256,129.44,129.36,20.20021592]
[1725632114769,1.82858046,129.47,129.36,19.3248]
[1725632114940,7.7268,129.42,129.36,27.0546]
[1725632115264,7.7268,129.42,129.36,19.3248]
[1725632115644,32.87068971,129.48,129.37,0.87695953]
[1725632115859,32.87068971,129.48,129.33,0.3245315]
[1725632115860,65.0,129.47,129.33,0.3245315]
[1725632116069,65.0,129.47,129.37,7.96096866]
[1725632116070,16.98565458,129.46,129.37,7.96096866]
[1725632116363,7.7324,129.33,129.26,19.3397]
[1725632116668,6.1157,129.38,129.27,0.88013403]
[1725632116669,14.4300132,129.37,129.27,0.88013403]
[1725632116850,7.7327,129.32,129.27,7.7352]
[1725632117067,7.7327,129.32,129.22,7.96825757]
[1725632117068,15.70014539,129.35,129.25,19.341]
[1725632117361,7.7316,129.34,129.28,27.072]
[1725632117564,7.7316,129.34,129.26,0.88051439]
[1725632117565,7.734,129.3,129.24,19.3436]
[1725632117747,20.0,129.33,129.2,7.7395]
[1725632117748,46.93411627,129.29,129.2,7.7395]
[1725632118070,1.93411627,129.29,129.19,0.9408005]
[1725632118240,16.01126165,129.28,129.19,0.9408005]
[1725632118439,20.0,129.33,129.19,0.9408005]
[1725632118440,13.29998495,129.27,129.22,7.7382]
[1725632118766,13.29998495,129.27,129.25,7.7366]
[1725632119134,9.66645287,129.34,129.24,19.3423]
[1725632119360,7.7334,129.31,129.24,19.3423]
[1725632119595,9.66813962,129.3,129.24,19.3423]
[1725632119751,10.0,129.36,129.24,19.3423]
[1725632119752,9.66909586,129.29,129.24,19.3423]
[1725632120065,14.69768173,129.35,129.19,0.9408005]
[1725632120066,1.93429774,129.28,129.19,0.9408005]
[1725632120238,7.7382,129.23,129.19,0.9408005]
[1725632120440,1.93529175,129.22,129.19,0.9408005]
[1725632120660,20.60518837,129.25,129.19,0.9408005]
[1725632120875,7.7386,129.23,129.19,0.9408005]
[1725632121043,13.781832,129.24,129.19,0.9408005]
[1725632121448,13.781832,129.24,129.19,20.2918005]
[1725632121852,13.781832,129.24,129.23,7.7381]
[1725632122078,16.6592,129.33,129.27,27.0744]
[1725632122079,14.00075602,129.31,129.27,27.0744]
[1725632122241,7.7333,129.31,129.25,7.7369]
[1725632122443,24.3913,129.33,129.27,7.7357]
[1725632122674,24.3913,129.33,129.2,0.88085526]
[1725632122675,16.6592,129.33,129.26,19.3406]
[1725632123482,16.6592,129.33,129.28,7.735]
[1725632123691,1.93394166,129.32,129.22,19.3457]
[1725632123860,7.7347,129.29,129.22,19.3457]
[1725632124197,1.93436229,129.28,129.19,8.6809005]
[1725632124490,1.93436229,129.28,129.19,0.9408005]
[1725632124696,6.1583,129.26,129.19,0.9408005]
[1725632124996,1.93540969,129.25,129.19,0.9408005]
[1725632125197,46.93540969,129.25,129.19,0.9408005]
[1725632125501,6.1583,129.26,129.19,0.9408005]
[1725632125663,6.1583,129.26,129.19,20.2920005]
[1725632125867,7.7377,129.24,129.19,20.2920005]
[1725632126068,7.737,129.25,129.19,28.0322005]
[1725632126393,7.739,129.22,129.19,0.9408005]
[1725632126563,1.93549927,129.22,129.19,0.9408005]
[1725632127106,1.93529445,129.23,129.19,0.9408005]
[1725632127585,1.93529445,129.23,129.14,7.7434]
[1725632127586,21.93529445,129.23,129.14,7.7434]
[1725632127756,21.93529445,129.23,129.12,7.97530974]
[1725632127757,69.23436649,129.22,129.12,7.97530974]
[1725632127964,69.23436649,129.22,129.06,19.3706]
[1725632127965,7.7441,129.13,129.06,19.3706]
[1725632128165,19.353,129.18,129.08,19.3664]
[1725632128393,19.353,129.18,129.08,27.113]
[1725632128394,46.93659092,129.17,129.08,27.113]
[1725632128686,7.7442,129.13,129.08,19.3664]
[1725632128902,46.93659092,129.17,129.08,19.3664]
[1725632128903,7.7435,129.14,129.08,19.3664]
[1725632129107,7.7432,129.15,129.1,19.3635]
[1725632129390,13.69410978,129.18,129.1,19.3635]
[1725632129586,13.69410978,129.18,129.11,60.46637223]
[1725632129787,13.69410978,129.18,129.13,7.744]
[1725632129982,1.82460136,129.17,129.05,38.7435]
[1725632130284,13.69410978,129.18,129.09,38.7318]
[1725632130498,13.69410978,129.18,129.15,19.3571]